Cogmind - Beta 10.1 @@@ ROGUE MODE // 2020.10.17 @ 22:12:12 Player: Shamgod Result: Destroyed by as-13494 with Assembled Rifle Performance ------------- Evolutions (0) 0 Regions Visited (2) 400 Robots Destroyed (15) 75 Value Destroyed (172) 172 Prototype IDs (0) 0 Alien Tech Used (0) 0 Bonus (0) 0 TOTAL SCORE: 647 Bonus ------- None Cogmind --------- Core Integrity 0/250 Matter 200/300 Energy 140/140 System Corruption 2% Temperature Cool (117) Movement Treading (160) Location -10/Mines Parts ------- > --- POWER (1) -------- Light Deuterium Engine > --- PROPULSION (2) --- Light Treads Light Treads > --- UTILITY (2) ------ Small Storage Unit Improved Light Armor Plating > --- WEAPON (2) ------- Autogun Autogun > --- INVENTORY (6) ---- Light Ion Engine Wheel Structural Scanner Terrain Scanner Terrain Scan Processor Peak State ------------ > --- POWER ------------ Light Deuterium Engine > --- PROPULSION ------- Light Treads Light Treads > --- UTILITY ---------- Small Storage Unit Improved Light Armor Plating > --- WEAPON ----------- Autogun Autogun > --- INVENTORY -------- Light Ion Engine Wheel Terrain Scanner [Rating: 13] Favorites ----------- Power Light Ion Engine Engine Light Ion Engine Propulsion Light Treads Treads Light Treads Utility Small Storage Unit Device Heat Sink Storage Small Storage Unit Protection Power Shielding Weapon Autogun Energy Gun Medium Laser Ballistic Gun Autogun Launcher Mini Grenade Launcher Build | -11 -10 -10 ------- Run | Scr Mat Min Slots Evolved . | . . . Power . | . . . Propulsion . | . . . Utility . | . . . Weapon . | . . . Parts Attached 24 | 7 4 13 Power 3 | 1 . 2 Engine 3 | 1 . 2 Core . | . . . Reactor . | . . . Propulsion 6 | 2 1 3 Treads 6 | 2 1 3 Leg . | . . . Wheel . | . . . Hover . | . . . Flight . | . . . Utility 6 | 1 1 4 Device 1 | . . 1 Storage 1 | 1 . . Processor . | . . . Hackware . | . . . Protection 4 | . 1 3 Artifact . | . . . Weapon 9 | 3 2 4 Energy Gun 3 | 2 . 1 Energy Cannon . | . . . Ballistic Gun 5 | 1 2 2 Ballistic Cannon . | . . . Launcher 1 | . . 1 Special Weapon . | . . . Impact Weapon . | . . . Slashing Weapon . | . . . Piercing Weapon . | . . . Special Melee Weapon . | . . . Unidentified Prototypes . | . . . Parts Lost 7 | . . 7 Power 1 | . . 1 Propulsion 2 | . . 2 Utility 2 | . . 2 Weapon 2 | . . 2 Highest Loss Streak 6 | . . 6 Average Slot Usage (%) 96 | . 93 98 Engine 14 | . 14 14 Treads 27 | . 28 26 Device 1 | . . 2 Storage 14 | . 14 14 Protection 9 | . 7 11 Energy Gun 4 | . 4 4 Ballistic Gun 22 | . 23 22 Naked Turns . | . . . Heaviest Build 18 | 11 14 18 Greatest Support 40 | 40 40 40 Greatest Overweight (x) . | . . . Average Overweight (x) . | . . . Largest Inventory Capacity 6 | 6 6 6 Average Capacity 5 | 5 6 6 Most Carried 6 | 6 6 6 Average Carried 5 | 4 5 5 Final Capacity 6 | 6 6 6 Final Carried 6 | 6 6 5 Class Distribution -------------------- 100% | Mutant Dominant Class ---------------- Mutant | -10/Materials Mutant | -10/Mines Resources | -11 -10 -10 ----------- Run | Scr Mat Min Matter Collected 659 | 245 78 336 Remotely . | . . . Salvage Created 325 | 78 97 150 Parts 20 | 1 12 7 Haulers Intercepted . | . . . Recyclers Shooed . | . . . Parts Field Recycled . | . . . Retrieved Matter . | . . . Parts Self-Destructed . | . . . Prevented . | . . . Kills | -11 -10 -10 ------- Run | Scr Mat Min Combat Hostiles Destroyed 14 | . 6 8 Guns 13 | . 6 7 AOE 1 | . . 1 Classes Destroyed 4 | 1 1 2 Recycler 1 | 1 . . Swarmer 6 | . 6 . Demolisher 2 | . . 2 Assembled 6 | . . 6 Best Kill Streak 6 | 1 6 4 Combat Bots Only 6 | . 6 4 Max Kills in Single Turn 1 | 1 1 1 Gunslinging . | . . . Exploded 1 | . . 1 Melee . | . . . Uniques/NPCs Destroyed . | . . . Combat | -11 -10 -10 -------- Run | Scr Mat Min Damage Taken 1332 | . 79 1253 Core 250 | . . 250 Absorbed by Shields . | . . . Core Remaining (%) 100 | 100 . . Volleys Fired 53 | 8 13 32 Largest 2 | 2 2 2 Hottest 86 | 70 46 86 Shots Fired 100 | 16 26 58 Gun 97 | 16 26 55 Cannon . | . . . Launcher 3 | . . 3 Special . | . . . Kinetic 83 | 8 26 49 Thermal 14 | 8 . 6 Explosive 3 | . . 3 Electromagnetic . | . . . Robot Hit Streak 9 | 6 9 9 Robot Miss Streak 5 | 1 3 5 Penetration Max . | . . . Secondary Targets 1 | . . 1 Max Gunslinging Chain 1 | . . 1 Shots Hit Robots 62 | 13 14 35 Core Hits 29 | 2 7 20 Critical Hits 1 | . . 1 Critical Kills . | . . . Critical Parts Destroyed 1 | . . 1 Melee Attacks . | . . . Impact . | . . . Slashing . | . . . Piercing . | . . . Sneak Attacks . | . . . Combat Hostiles . | . . . Follow-up Attacks . | . . . Damage Inflicted 911 | 179 144 588 Guns 823 | 179 144 500 Cannons . | . . . Explosions 88 | . . 88 Melee . | . . . Ramming . | . . . Kinetic 647 | 90 144 413 Thermal 176 | 89 . 87 Explosive 88 | . . 88 Electromagnetic . | . . . Impact . | . . . Slashing . | . . . Piercing . | . . . Highest Corruption 2 | . . 2 Average Corruption 2 | . . 2 Corruption Purged . | . . . Effects 3 | . . 3 Heat Flow Errors 2 | . . 2 Targeting Errors 1 | . . 1 Overload Shots . | . . . Overflow Damage . | . . . Projectiles . | . . . Explosions . | . . . Melee . | . . . Knockbacks . | . . . Impact . | . . . Kinetic . | . . . Secondary . | . . . Self-Inflicted Damage 46 | . . 46 Shots 1 | . . 1 Rammed . | . . . Targets Rammed . | . . . Kicked . | . . . Crushed . | . . . Highest Temperature 293 | 36 12 293 Average Temperature 76 | 19 6 106 Received Heat Transfer 220 | . . 220 Effects 2 | . . 2 Interference 2 | . . 2 Siege Activations . | . . . Robots Corrupted . | . . . Combat Hostiles . | . . . Parts Fried . | . . . Impact Corruptions . | . . . Robots Melted . | . . . Combat Hostiles . | . . . Parts Melted 1 | . . 1 Heat Transferred 481 | 259 . 222 Parts Sabotaged . | . . . Parts Stolen . | . . . Parts Stripped . | . . . Power Chain Reactions . | . . . Missiles Intercepted . | . . . Alert | -11 -10 -10 ------- Run | Scr Mat Min Peak Influence 168 | 5 168 130 Initial 65 | . 3 65 Average 62 | . 77 69 Maximum Alert Level . | . . . Low Security (%) 100 | 100 100 100 Level 1 . | . . . Level 2 . | . . . Level 3 . | . . . Level 4 . | . . . Level 5 . | . . . High Security . | . . . Max Security . | . . . Squads Dispatched 1 | . 1 . Investigation . | . . . Extermination . | . . . Reinforcement 1 | . 1 . Assault . | . . . Garrison . | . . . Intercept . | . . . Construction Impeded . | . . . Haulers Reinforced . | . . . Stealth | -11 -10 -10 --------- Run | Scr Mat Min Distress Signals . | . . . Communications Jammed . | . . . Distress Signals . | . . . Times Spotted 39 | . 12 27 Peak Tracking Total 10 | . 7 10 Tactical Retreats 4 | . . 4 Traps | -11 -10 -10 ------- Run | Scr Mat Min Traps Triggered . | . . . Indirectly . | . . . Trap Hack Attempts . | . . . Triggered . | . . . Disarmed . | . . . Reprogrammed . | . . . Reused . | . . . Traps Extracted . | . . . Installed . | . . . Triggered . | . . . Machines | -11 -10 -10 ---------- Run | Scr Mat Min Machines Disabled . | . . . Max in Single Turn . | . . . Machines Sabotaged . | . . . Garrisons Compromised . | . . . Overloaded Fab Kills . | . . . Fab Network Shutdowns . | . . . Hacking | -11 -10 -10 --------- Run | Scr Mat Min Machines Accessed 2 | . 2 . Terminals 2 | . 2 . Fabricators . | . . . Repair Stations . | . . . Recycling Units . | . . . Scanalyzers . | . . . Garrison Access . | . . . Total Hacks 7 | . 7 . Successful 5 | . 5 . Failed 1 | . 1 . Catastrophic . | . . . Database Lockouts 1 | . 1 . Manual 7 | . 7 . Terminals 7 | . 7 . Fabricators . | . . . Repair Stations . | . . . Recycling Units . | . . . Scanalyzers . | . . . Garrison Access . | . . . Terminal Hacks 4 | . 4 . Record 1 | . 1 . Robot Analysis 2 | . 2 . Branch Access Points 1 | . 1 . Fabricator Hacks . | . . . Repair Station Hacks . | . . . Recycling Unit Hacks . | . . . Scanalyzer . | . . . Garrison Access Hacks . | . . . Unauthorized Hacks 1 | . 1 . Terminals 1 | . 1 . Botnet 1 | . 1 . Fabricators . | . . . Repair Stations . | . . . Recycling Units . | . . . Scanalyzers . | . . . Garrison Access . | . . . Data Cores Recovered . | . . . Used . | . . . Hacking Detections 2 | . 2 . Full Trace Events . | . . . Feedback Events . | . . . Feedback Blocked . | . . . Robot Schematics Acquired . | . . . Robots Built . | . . . Matter . | . . . Time . | . . . Total Robot Build Rating . | . . . Part Schematics Acquired . | . . . Parts Built . | . . . Matter . | . . . Time . | . . . Total Part Build Rating . | . . . Parts Repaired . | . . . Time . | . . . Parts Recycled . | . . . Recycled Matter . | . . . Retrieved Matter . | . . . Retrieved Components . | . . . Parts Scanalyzed . | . . . Part Schematics Acquired . | . . . Parts Damaged . | . . . Bothacking | -11 -10 -10 ------------ Run | Scr Mat Min Used RIF Installer . | . . . Robots Hacked . | . . . Non-combat . | . . . Combat . | . . . Robot Hacks Applied . | . . . Relay Couplers Released . | . . . Robots Rewired . | . . . Allies Hacked . | . . . Hacks Repelled . | . . . Allies | -11 -10 -10 -------- Run | Scr Mat Min Total Allies . | . . . Largest Group . | . . . Highest-Rated Group . | . . . Highest-Rated Ally . | . . . Total Orders . | . . . Ally Attacks . | . . . Total Damage . | . . . Kills . | . . . Allies Corrupted . | . . . Allies Melted . | . . . Intel | -11 -10 -10 ------- Run | Scr Mat Min Robot Analysis Total 2 | . 2 . Derelict Logs Recovered . | . . . Drone Launches . | . . . Drone Recoveries . | . . . Exploration | -11 -10 -10 ------------- Run | Scr Mat Min Turns Passed 970 | 144 374 452 Spaces Moved 435 | 68 179 188 Core 4 | 4 . . Treads 431 | 64 179 188 Legs . | . . . Wheels . | . . . Hover . | . . . Flight . | . . . Fastest Speed 50 | 50 160 160 Average Speed 158 | 153 160 160 Slowest Speed 160 | 160 160 160 Overloaded Moves . | . . . Propulsion Burnouts . | . . . Robots Hopped . | . . . Cave-ins Triggered . | . . . Exploration Rate (%) 26 | 5 39 36 Regions Visited 2 Branch Regions 1 Pre-discovered Areas . | . . . Known Exits Taken 1 | . 1 . Unknown Exits Taken 1 | 1 . . Scrap Searched . | . . . Spaces Dug . | . . . Terrain Destroyed 16 | . . 16 Melee . | . . . Projectile . | . . . AOE 16 | . . 16 Terrain Rammed . | . . . Walls Destroyed . | . . . Machines Disabled . | . . . Actions | -11 -10 -10 --------- Run | Scr Mat Min Total 629 | 88 248 293 Wait 86 | . 40 46 Move 433 | 67 178 188 Hop . | . . . Pick Up 19 | 6 5 8 Fast Attach 12 | 6 3 3 Attach 7 | . . 7 Detach . | . . . Swap 5 | 1 1 3 Drop 14 | . 8 6 Fire 53 | 8 13 32 Melee . | . . . Ram . | . . . Kick . | . . . Crush . | . . . Escape Stasis . | . . . Rewire . | . . . Trap . | . . . Miscellaneous . | . . . Route ------- -11/Scrapyard -10/Materials (discovered 2 exits: [*Mat] / *Min) -10/Mines (discovered 1 exit: [*Mat]) History --------- Turn | Location | Event 21 | -11/Scrapyard | Discovered new exit (range 15) 145 | -11/Scrapyard | Entered Materials 161 | -10/Materials | Identified exit to Mines 257 | -10/Materials | Central database locked down 328 | -10/Materials | Build established: Mutant 398 | -10/Materials | Discovered new exit (range 4) 519 | -10/Materials | Entered Mines 604 | -10/Mines | Discovered new exit (range 6) 620 | -10/Mines | Joined a pair of Derelicts in attacking an 0b10 outpost 758 | -10/Mines | Assembled infested the area 763 | -10/Mines | Assisted by a Guerilla fighting off Assembled 806 | -10/Mines | Core integrity fell below 50% 836 | -10/Mines | Core integrity fell below 20% 873 | -10/Mines | Lost 6 parts (1p2n1u2w) 971 | -10/Mines | Destroyed by as-13494 with Assembled Rifle Last Messages --------------- 00945_ U-05 Engineer builds a Wall. 00945_ U-05 Engineer lays Concrete. 00946_ R-06 Scavenger destroyed. 00947_ U-05 Engineer lays Concrete. 00949_ T-07 Excavator destroyed. 00950_ U-05 Engineer lays Concrete. 00951_ U-05 Engineer destroyed. 00952_ K-01 Serf collects debris. 00953_ U-05 Engineer lays Concrete. 00953_ K-01 Serf collects debris. 00954_ U-05 Engineer lays Concrete. 00954_ R-06 Scavenger destroyed. 00955_ as-07734 destroyed. 00956_ K-01 Serf collects debris. 00956_ U-05 Engineer lays Concrete. 00956_ U-05 Engineer destroyed. 00959_ as-88887 sneak attacks. 00961_ K-01 Serf suffers critical hit. 00961_ K-01 Serf destroyed. 00963_ as-77174 destroyed. Map ----- +----------------------------------------------------+ | ???????????????????# ##??## [ ##??? | | ???????????????????# ####???###++###??? | | ???????????????????# ####??????# #??? | | ???????????????????# """ ##?????????# ##?? | | ???????????????????## """ #####??????# #?? | | ????????????????????## """ #??????# < #?? | | ?????????????????????# ### #???#### #?? | | ?????????????????????#######?# #???# #?? | | ?????????????????????????????# ##### ## #?? | | ?????????????????????????????# ## #### #####?? | | ?????????????????????????????##### ## #??# #?????? | | ?????????????????????????????????# #??# #?????? | | ?????????????????????????????????### #??# ####??? | | ???????????????????????????????????# #??# #??? | | ???????????????????????????????###?# #??#### #??? | | ???????????????????????????????# ### #?????# ###? | | ???????????????????????###??#### ## ###???# #? | | ??????????????????????## ### ## # ##??### #? | | ??????????????????????# # # ##???# #? | | ??????????????????????# ## u #???# #? | | ??????????????????????# # #???# #? | | ???????????????????#### ## ## % ##?### ## | | ??????????????????## # ###= ##??# | | ??????????????????# | #%!% % #???# | | ??????????????????# !%= !a|% ##### | | ?????????????????# ### @|!!=| """ | | ????????????????# ?# #!%==%= """ | | ????????????????????## !#a=!%* ###### """ | | ?????????????????? = %=%% ##????# | | ????????????????? =|**%[ ##?????###### | | ???????????????? !%!%!%=== #???????????? | | ?????????????? * !!!% # ##???????????? | | ?????????????? = %=%* # ######????????????? | | ??????????????%* *! =# # ####???????????????? | | ?????????????## %*%[ ########???????????????????? | | ??????????????# %###* #??????????????????????????? | | ??????????????# ??# ???????????????????????????? | | ??????????????#????# ????????????????????????????? | | ???????????????????#?????????????????????????????? | | ?????????????????????????????????????????????????? | | ?????????????????????????????????????????????????? | | ?????????????????????????????????????????????????? | | ?????????????????????????????????????????????????? | | ?????????????????????????????????????????????????? | | ?????????????????????????????????????????????????? | | ?????????????????????????????????????????????????? | | ?????????????????????????????????????????????????? | | ?????????????????????????????????????????????????? | | ?????????????????????????????????????????????????? | | ?????????????????????????????????????????????????? | +----------------------------------------------------+ Best States ------------- Heat Dissipation 35 Energy Generation 14 Energy Capacity 140 Matter Stores 284 Matter Capacity 300 Sight Range 16 Terrain Scan Density 10 Armor Coverage 150 Power Shielding 33 Weapon Shielding 33 Evasion (%) 40 Recoil Reduction 2 Item Schematics ----------------- None Robot Schematics ------------------ None Fabricated ------------ Nothing Alien Tech Used ----------------- None Achievements -------------- None Challenges ------------ None Game ------ Seed RecyclingIntegrityPrototype Manual? 0 Play Time 00:17:15 Cumulative 9.9 hours Start 2020.10.17 @ 21:53:37 End 2020.10.17 @ 22:12:12 Sessions 1 Manual Loads 0 Difficulty Rogue Special Mode None Game No. 16 Rogue 16 Adventurer 0 Explorer 0 Win Type - Total 0 Types 0/0/0/0/0/0/0/0/0 Lore% 8 Gallery% 14 Achievement% 12 Wizard Run 0 Options --------- ASCII 0 Keyboard 1 Movement Numpad Keybinds 0 Fullscreen 2 Font 16/Dina Map View 76x50 Tactical HUD 1 Map Filters NONE Filters NONE Steam 1 RUN: fc6e9b38-7037-4275-8261-195c186a5726